[Event "NK ABC Kwalificatie 2"]
[Site "Zoetermeer, Netherlands"]
[Date "2025.01.04"]
[Round "1.1"]
[White "Tangarife Ramirez, Katja"]
[Black "Bakija, Alan"]
[Result "0-1"]
[TimeControl "55+10"]
[WhiteFideId "8588492"]
[BlackFideId "8629346"]
[WhiteElo "1812"]
[BlackElo "2247"]

1. d4 {[%clk 00:55:17]} {[%emt 00:00:02]} d6 {[%clk 00:55:06]} {[%emt
00:00:15]} 2. c4 {[%clk 00:53:45]} {[%emt 00:01:42]} e5 {[%clk 00:54:57]}
{[%emt 00:00:18]} 3. dxe5 {[%clk 00:50:55]} {[%emt 00:03:00]} dxe5 {[%clk
00:55:02]} {[%emt 00:00:05]} 4. Qxd8+ {[%clk 00:50:58]} {[%emt 00:00:08]} Kxd8
{[%clk 00:55:07]} {[%emt 00:00:04]} 5. e4 {[%clk 00:48:55]} {[%emt 00:02:13]}
Bc5 {[%clk 00:52:30]} {[%emt 00:02:46]} 6. Nc3 {[%clk 00:46:31]} {[%emt
00:02:35]} c6 {[%clk 00:52:34]} {[%emt 00:00:06]} 7. a3 {[%clk 00:45:02]}
{[%emt 00:01:40]} Be6 {[%clk 00:52:18]} {[%emt 00:00:25]} 8. b4 {[%clk
00:42:25]} {[%emt 00:02:47]} Bd4 {[%clk 00:51:57]} {[%emt 00:00:30]} 9. Bb2
{[%clk 00:42:20]} {[%emt 00:00:15]} Nd7 {[%clk 00:50:52]} {[%emt 00:01:15]} 10.
Bd3 {[%clk 00:33:12]} {[%emt 00:09:18]} f6 {[%clk 00:43:11]} {[%emt 00:07:50]}
11. Nf3 {[%clk 00:30:47]} {[%emt 00:02:36]} Bxc3+ {[%clk 00:43:11]} {[%emt
00:00:10]} 12. Bxc3 {[%clk 00:30:48]} {[%emt 00:00:09]} Ne7 {[%clk 00:42:47]}
{[%emt 00:00:34]} 13. O-O {[%clk 00:28:36]} {[%emt 00:02:21]} Kc7 {[%clk
00:41:10]} {[%emt 00:01:47]} 14. Nd2 {[%clk 00:26:00]} {[%emt 00:02:46]} Rhd8
{[%clk 00:40:49]} {[%emt 00:00:31]} 15. Be2 {[%clk 00:24:49]} {[%emt 00:01:21]}
Nc8 {[%clk 00:29:44]} {[%emt 00:11:15]} 16. a4 {[%clk 00:21:59]} {[%emt
00:02:59]} c5 {[%clk 00:25:34]} {[%emt 00:04:20]} 17. b5 {[%clk 00:20:50]}
{[%emt 00:01:20]} a5 {[%clk 00:25:05]} {[%emt 00:00:39]} 18. f3 {[%clk
00:13:31]} {[%emt 00:07:29]} Nd6 {[%clk 00:22:35]} {[%emt 00:02:39]} 19. Rfc1
{[%clk 00:12:59]} {[%emt 00:00:43]} b6 {[%clk 00:17:10]} {[%emt 00:05:36]} 20.
Bb2 {[%clk 00:11:17]} {[%emt 00:01:52]} Nf8 {[%clk 00:15:22]} {[%emt 00:01:58]}
21. Nf1 {[%clk 00:10:55]} {[%emt 00:00:32]} Bg8 {[%clk 00:09:19]} {[%emt
00:06:13]} 22. Ne3 {[%clk 00:10:41]} {[%emt 00:00:23]} Ne6 {[%clk 00:05:17]}
{[%emt 00:04:12]} 23. Rd1 {[%clk 00:08:26]} {[%emt 00:02:26]} Nd4 {[%clk
00:04:36]} {[%emt 00:00:50]} 24. Bf1 {[%clk 00:08:06]} {[%emt 00:00:30]} Re8
{[%clk 00:03:56]} {[%emt 00:00:51]} 25. Rac1 {[%clk 00:07:03]} {[%emt
00:01:13]} Rad8 {[%clk 00:03:51]} {[%emt 00:00:15]} 26. Nd5+ {[%clk 00:06:44]}
{[%emt 00:00:30]} Bxd5 {[%clk 00:03:53]} {[%emt 00:00:07]} 27. exd5 {[%clk
00:04:27]} {[%emt 00:02:27]} Re7 {[%clk 00:03:13]} {[%emt 00:00:50]} 28. Bxd4
{[%clk 00:03:31]} {[%emt 00:01:06]} exd4 {[%clk 00:03:17]} {[%emt 00:00:06]} 29.
Bd3 {[%clk 00:03:16]} {[%emt 00:00:26]} g6 {[%clk 00:02:35]} {[%emt 00:00:52]}
30. Kf2 {[%clk 00:03:07]} {[%emt 00:00:19]} Nf7 {[%clk 00:02:41]} {[%emt
00:00:04]} 31. Re1 {[%clk 00:03:07]} {[%emt 00:00:10]} Ne5 {[%clk 00:02:38]}
{[%emt 00:00:13]} 32. Rcd1 {[%clk 00:02:26]} {[%emt 00:00:51]} Rde8 {[%clk
00:02:38]} {[%emt 00:00:10]} 33. Kf1 {[%clk 00:01:34]} {[%emt 00:01:03]} Kd6
{[%clk 00:02:26]} {[%emt 00:00:22]} 34. Bc2 {[%clk 00:00:57]} {[%emt 00:00:46]}
Nxc4 {[%clk 00:02:18]} {[%emt 00:00:18]} 35. Rxe7 {[%clk 00:00:45]} {[%emt
00:00:23]} Rxe7 {[%clk 00:02:26]} {[%emt 00:00:01]} 36. Kf2 {[%clk 00:00:34]}
{[%emt 00:00:21]} Ne3 {[%clk 00:02:18]} {[%emt 00:00:18]} 37. Rd2 {[%clk
00:00:29]} {[%emt 00:00:13]} Nxc2 {[%clk 00:02:26]} {[%emt 00:00:04]} 38. Rxc2
{[%clk 00:00:36]} {[%emt 00:00:03]} Kxd5 {[%clk 00:02:34]} {[%emt 00:00:02]} 39.
f4 {[%clk 00:00:36]} {[%emt 00:00:10]} d3 {[%clk 00:02:34]} {[%emt 00:00:11]}
40. Rd2 {[%clk 00:00:42]} {[%emt 00:00:04]} Kd4 {[%clk 00:02:41]} {[%emt
00:00:02]} 41. g4 {[%clk 00:00:45]} {[%emt 00:00:07]} c4 {[%clk 00:02:49]}
{[%emt 00:00:03]} 42. f5 {[%clk 00:00:38]} {[%emt 00:00:17]} g5 {[%clk
00:02:58]} {[%emt 00:00:01]} 43. Kf3 {[%clk 00:00:29]} {[%emt 00:00:19]} c3
{[%clk 00:03:02]} {[%emt 00:00:06]} 44. Rd1 {[%clk 00:00:27]} {[%emt 00:00:12]}
c2 {[%clk 00:03:09]} {[%emt 00:00:03]} 45. Rh1 {[%clk 00:00:11]} {[%emt
00:00:26]} d2 {[%clk 00:03:16]} {[%emt 00:00:03]} 0-1

[Event "NK ABC Kwalificatie 2"]
[Site "Zoetermeer, Netherlands"]
[Date "2025.01.04"]
[Round "1.2"]
[White "Kumar, Prajit Sai"]
[Black "Ganeshram, Nirupa"]
[Result "1-0"]
[TimeControl "55+10"]
[WhiteFideId "8767979"]
[BlackFideId "8661994"]
[WhiteElo "2210"]
[BlackElo "1794"]

1. e4 {[%clk 00:55:19]} c5 {[%clk 00:55:14]} {[%emt 00:00:07]} 2. Nf3 {[%clk
00:55:23]} {[%emt 00:00:05]} d6 {[%clk 00:55:17]} {[%emt 00:00:06]} 3. d4
{[%clk 00:55:28]} {[%emt 00:00:05]} cxd4 {[%clk 00:55:19]} {[%emt 00:00:08]} 4.
Nxd4 {[%clk 00:55:34]} {[%emt 00:00:04]} Nf6 {[%clk 00:55:20]} {[%emt
00:00:10]} 5. Nc3 {[%clk 00:55:35]} {[%emt 00:00:08]} g6 {[%clk 00:55:08]}
{[%emt 00:00:23]} 6. Be3 {[%clk 00:55:36]} {[%emt 00:00:09]} Bg7 {[%clk
00:55:06]} {[%emt 00:00:12]} 7. f3 {[%clk 00:55:41]} {[%emt 00:00:04]} O-O
{[%clk 00:55:01]} {[%emt 00:00:15]} 8. Qd2 {[%clk 00:55:44]} {[%emt 00:00:07]}
Nc6 {[%clk 00:55:05]} {[%emt 00:00:07]} 9. O-O-O {[%clk 00:55:37]} {[%emt
00:00:17]} d5 {[%clk 00:53:44]} {[%emt 00:01:30]} 10. exd5 {[%clk 00:55:20]}
{[%emt 00:00:27]} Nxd5 {[%clk 00:53:39]} {[%emt 00:00:15]} 11. Nxc6 {[%clk
00:55:22]} {[%emt 00:00:08]} bxc6 {[%clk 00:53:43]} {[%emt 00:00:07]} 12. Bd4
{[%clk 00:55:25]} {[%emt 00:00:07]} Bxd4 {[%clk 00:53:15]} {[%emt 00:00:38]} 13.
Qxd4 {[%clk 00:55:28]} {[%emt 00:00:07]} Qb6 {[%clk 00:52:12]} {[%emt
00:01:13]} 14. Qxb6 {[%clk 00:47:50]} {[%emt 00:07:48]} axb6 {[%clk 00:43:04]}
{[%emt 00:09:19]} 15. Nxd5 {[%clk 00:47:54]} {[%emt 00:00:06]} cxd5 {[%clk
00:42:58]} {[%emt 00:00:16]} 16. a3 {[%clk 00:47:56]} {[%emt 00:00:07]} Be6
{[%clk 00:32:59]} {[%emt 00:10:10]} 17. Bb5 {[%clk 00:47:12]} {[%emt 00:00:54]}
Rfc8 {[%clk 00:31:15]} {[%emt 00:01:54]} 18. Rhe1 {[%clk 00:45:14]} {[%emt
00:02:08]} Kg7 {[%clk 00:28:42]} {[%emt 00:02:44]} 19. Rd4 {[%clk 00:42:12]}
{[%emt 00:03:11]} Ra5 {[%clk 00:24:12]} {[%emt 00:04:41]} 20. a4 {[%clk
00:41:51]} {[%emt 00:00:31]} Raa8 {[%clk 00:23:17]} {[%emt 00:01:05]} 21. c3
{[%clk 00:40:46]} {[%emt 00:01:14]} Rc7 {[%clk 00:20:43]} {[%emt 00:02:45]} 22.
h4 {[%clk 00:37:51]} {[%emt 00:03:05]} Rd8 {[%clk 00:13:07]} {[%emt 00:07:45]}
23. Ba6 {[%clk 00:34:22]} {[%emt 00:03:39]} Ra8 {[%clk 00:09:13]} {[%emt
00:04:04]} 24. Bb5 {[%clk 00:33:58]} {[%emt 00:00:34]} Rd8 {[%clk 00:07:30]}
{[%emt 00:01:53]} 25. Ba6 {[%clk 00:33:13]} {[%emt 00:00:55]} Ra8 {[%clk
00:07:12]} {[%emt 00:00:28]} 26. Bd3 {[%clk 00:33:16]} {[%emt 00:00:06]} Rca7
{[%clk 00:05:12]} {[%emt 00:02:11]} 27. Bc2 {[%clk 00:31:39]} {[%emt 00:01:46]}
Kf8 {[%clk 00:03:47]} {[%emt 00:01:36]} 28. h5 {[%clk 00:25:48]} {[%emt
00:06:01]} Bd7 {[%clk 00:00:51]} {[%emt 00:03:06]} 29. b3 {[%clk 00:20:11]}
{[%emt 00:05:47]} e6 {[%clk 00:00:39]} {[%emt 00:00:22]} 30. Rf4 {[%clk
00:17:08]} {[%emt 00:03:12]} Kg8 {[%clk 00:00:25]} {[%emt 00:00:24]} 31. Rb4
{[%clk 00:16:30]} {[%emt 00:00:48]} Rb8 {[%clk 00:00:22]} {[%emt 00:00:13]} 32.
Kd2 {[%clk 00:14:57]} {[%emt 00:01:43]} Rbb7 {[%clk 00:00:23]} {[%emt
00:00:09]} 33. Bd3 {[%clk 00:14:12]} {[%emt 00:00:54]} Kg7 {[%clk 00:00:23]}
{[%emt 00:00:11]} 34. f4 {[%clk 00:12:24]} {[%emt 00:01:59]} Rb8 {[%clk
00:00:20]} {[%emt 00:00:13]} 35. Rh1 {[%clk 00:11:53]} {[%emt 00:00:40]} Bc6
{[%clk 00:00:18]} {[%emt 00:00:12]} 36. Rh2 {[%clk 00:10:55]} {[%emt 00:01:08]}
Rbb7 {[%clk 00:00:23]} {[%emt 00:00:05]} 37. Ke3 {[%clk 00:09:36]} {[%emt
00:01:29]} Kf6 {[%clk 00:00:23]} {[%emt 00:00:10]} 38. g4 {[%clk 00:08:59]}
{[%emt 00:00:46]} Rb8 {[%clk 00:00:26]} {[%emt 00:00:07]} 39. g5+ {[%clk
00:08:59]} {[%emt 00:00:11]} Kg7 {[%clk 00:00:23]} {[%emt 00:00:13]} 40. Kd4
{[%clk 00:08:37]} {[%emt 00:00:32]} Rbb7 {[%clk 00:00:16]} {[%emt 00:00:17]} 41.
Ke5 {[%clk 00:07:23]} {[%emt 00:01:24]} Ra8 {[%clk 00:00:22]} {[%emt 00:00:04]}
42. Kd6 {[%clk 00:05:44]} {[%emt 00:01:49]} Be8 {[%clk 00:00:24]} {[%emt
00:00:09]} 43. h6+ {[%clk 00:04:57]} {[%emt 00:00:57]} Kf8 {[%clk 00:00:30]}
{[%emt 00:00:03]} 44. Ra2 {[%clk 00:04:20]} {[%emt 00:00:47]} Raa7 {[%clk
00:00:18]} {[%emt 00:00:22]} 45. Bb5 {[%clk 00:03:44]} {[%emt 00:00:45]} Bxb5
{[%clk 00:00:16]} {[%emt 00:00:13]} 46. Rxb5 {[%clk 00:03:53]} Rd7+ {[%clk
00:00:16]} {[%emt 00:00:10]} 47. Ke5 {[%clk 00:03:57]} {[%emt 00:00:06]} Rdb7
{[%clk 00:00:24]} {[%emt 00:00:02]} 48. b4 {[%clk 00:03:09]} {[%emt 00:00:58]}
Ke7 {[%clk 00:00:22]} {[%emt 00:00:12]} 49. a5 {[%clk 00:02:12]} {[%emt
00:01:07]} bxa5 {[%clk 00:00:13]} {[%emt 00:00:19]} 50. Raxa5 {[%clk 00:02:13]}
{[%emt 00:00:09]} Rc7 {[%clk 00:00:19]} {[%emt 00:00:04]} 51. Rc5 {[%clk
00:01:54]} {[%emt 00:00:29]} Rab7 {[%clk 00:00:20]} {[%emt 00:00:09]} 52. Ra6
{[%clk 00:01:19]} {[%emt 00:00:45]} Kd7 {[%clk 00:00:13]} {[%emt 00:00:18]} 53.
Kf6 {[%clk 00:00:41]} {[%emt 00:00:47]} Rxc5 {[%clk 00:00:17]} {[%emt
00:00:06]} 54. bxc5 {[%clk 00:00:50]} {[%emt 00:00:02]} Rc7 {[%clk 00:00:22]}
{[%emt 00:00:05]} 55. c6+ {[%clk 00:00:29]} {[%emt 00:00:31]} Kd6 {[%clk
00:00:27]} {[%emt 00:00:05]} 56. Rb6 {[%clk 00:00:24]} {[%emt 00:00:15]} Kc5
{[%clk 00:00:18]} {[%emt 00:00:19]} 57. Rb7 {[%clk 00:00:29]} {[%emt 00:00:04]}
Rxc6 {[%clk 00:00:25]} {[%emt 00:00:03]} 58. Rxf7 {[%clk 00:00:32]} {[%emt
00:00:07]} Kc4 {[%clk 00:00:33]} {[%emt 00:00:02]} 59. Rxh7 {[%clk 00:00:36]}
{[%emt 00:00:05]} Kxc3 {[%clk 00:00:42]} {[%emt 00:00:02]} 60. Rd7 {[%clk
00:00:38]} {[%emt 00:00:08]} d4 {[%clk 00:00:47]} {[%emt 00:00:05]} 61. h7
{[%clk 00:00:45]} {[%emt 00:00:03]} Rc8 {[%clk 00:00:56]} {[%emt 00:00:01]} 62.
Kxg6 {[%clk 00:00:40]} {[%emt 00:00:15]} d3 {[%clk 00:01:02]} {[%emt 00:00:04]}
63. Kg7 {[%clk 00:00:38]} {[%emt 00:00:12]} Kc2 {[%clk 00:01:02]} {[%emt
00:00:10]} 64. h8=Q {[%clk 00:00:42]} {[%emt 00:00:06]} Rxh8 {[%clk 00:01:10]}
{[%emt 00:00:02]} 65. Kxh8 {[%clk 00:00:50]} {[%emt 00:00:02]} d2 {[%clk
00:01:16]} {[%emt 00:00:04]} 66. g6 {[%clk 00:00:55]} {[%emt 00:00:05]} 1-0

[Event "NK ABC Kwalificatie 2"]
[Site "Zoetermeer, Netherlands"]
[Date "2025.01.04"]
[Round "1.3"]
[White "Smeenk, Merijn"]
[Black "Snijders, Take"]
[Result "0-1"]
[TimeControl "55+10"]
[WhiteFideId "8707919"]
[BlackFideId "8935927"]
[WhiteElo "1782"]
[BlackElo "2119"]

1. e4 {[%clk 00:55:17]} {[%emt 00:00:02]} c6 {[%clk 00:55:17]} {[%emt
00:00:03]} 2. d4 {[%clk 00:55:20]} {[%emt 00:00:08]} d5 {[%clk 00:55:24]}
{[%emt 00:00:03]} 3. Nc3 {[%clk 00:55:23]} {[%emt 00:00:07]} dxe4 {[%clk
00:55:30]} {[%emt 00:00:04]} 4. Nxe4 {[%clk 00:55:25]} {[%emt 00:00:07]} Nf6
{[%clk 00:55:37]} {[%emt 00:00:03]} 5. Nxf6+ {[%clk 00:55:24]} {[%emt
00:00:11]} exf6 {[%clk 00:55:42]} {[%emt 00:00:05]} 6. c3 {[%clk 00:55:24]}
{[%emt 00:00:11]} Bd6 {[%clk 00:54:24]} {[%emt 00:01:28]} 7. Bd3 {[%clk
00:55:12]} {[%emt 00:00:21]} O-O {[%clk 00:54:31]} {[%emt 00:00:04]} 8. Qc2
{[%clk 00:55:13]} {[%emt 00:00:09]} c5 {[%clk 00:54:30]} {[%emt 00:00:11]} 9.
dxc5 {[%clk 00:48:05]} {[%emt 00:07:17]} Bxc5 {[%clk 00:53:21]} {[%emt
00:01:18]} 10. Bf4 {[%clk 00:46:56]} {[%emt 00:01:19]} h6 {[%clk 00:48:21]}
{[%emt 00:05:11]} 11. Ne2 {[%clk 00:41:14]} {[%emt 00:05:52]} Nc6 {[%clk
00:44:44]} {[%emt 00:03:46]} 12. O-O {[%clk 00:39:04]} {[%emt 00:02:19]} Be6
{[%clk 00:42:22]} {[%emt 00:02:33]} 13. Rad1 {[%clk 00:33:48]} {[%emt
00:05:25]} Qb6 {[%clk 00:40:10]} {[%emt 00:02:24]} 14. a4 {[%clk 00:31:46]}
{[%emt 00:02:11]} Bb3 {[%clk 00:37:22]} {[%emt 00:02:58]} 15. Bc7 {[%clk
00:29:41]} {[%emt 00:02:15]} Bxc2 {[%clk 00:35:26]} {[%emt 00:02:06]} 16. Bxb6
{[%clk 00:29:37]} {[%emt 00:00:14]} Bxd1 {[%clk 00:35:11]} {[%emt 00:00:25]} 17.
Bxc5 {[%clk 00:29:26]} {[%emt 00:00:21]} Bxe2 {[%clk 00:35:04]} {[%emt
00:00:17]} 18. Bxe2 {[%clk 00:28:46]} {[%emt 00:00:50]} Rfe8 {[%clk 00:30:49]}
{[%emt 00:04:26]} 19. Bf3 {[%clk 00:28:06]} {[%emt 00:00:50]} Rac8 {[%clk
00:30:16]} {[%emt 00:00:43]} 20. Be3 {[%clk 00:21:05]} {[%emt 00:07:11]} b6
{[%clk 00:25:38]} {[%emt 00:04:48]} 21. Be2 {[%clk 00:17:38]} {[%emt 00:03:37]}
Ne5 {[%clk 00:23:55]} {[%emt 00:01:53]} 22. a5 {[%clk 00:15:29]} {[%emt
00:02:20]} Nc4 {[%clk 00:22:10]} {[%emt 00:01:55]} 23. Bxc4 {[%clk 00:15:34]}
{[%emt 00:00:05]} Rxc4 {[%clk 00:22:16]} {[%emt 00:00:04]} 24. axb6 {[%clk
00:15:27]} {[%emt 00:00:16]} axb6 {[%clk 00:22:22]} {[%emt 00:00:04]} 25. Bxb6
{[%clk 00:14:27]} {[%emt 00:01:10]} Rb8 {[%clk 00:22:18]} {[%emt 00:00:14]} 26.
Bd4 {[%clk 00:14:32]} {[%emt 00:00:05]} Rxb2 {[%clk 00:22:21]} {[%emt
00:00:08]} 27. g3 {[%clk 00:12:20]} {[%emt 00:02:22]} Ra4 {[%clk 00:19:14]}
{[%emt 00:03:17]} 28. Kg2 {[%clk 00:10:59]} {[%emt 00:01:31]} Kh7 {[%clk
00:17:32]} {[%emt 00:01:51]} 29. Re1 {[%clk 00:10:09]} {[%emt 00:01:00]} Kg6
{[%clk 00:16:54]} {[%emt 00:00:49]} 30. h4 {[%clk 00:07:27]} {[%emt 00:02:52]}
Rb7 {[%clk 00:15:25]} {[%emt 00:01:39]} 31. Kh3 {[%clk 00:06:35]} {[%emt
00:01:02]} h5 {[%clk 00:14:51]} {[%emt 00:00:44]} 32. Re4 {[%clk 00:05:35]}
{[%emt 00:01:09]} Kf5 {[%clk 00:12:59]} {[%emt 00:02:04]} 33. Rf4+ {[%clk
00:05:18]} {[%emt 00:00:26]} Ke6 {[%clk 00:12:52]} {[%emt 00:00:17]} 34. Re4+
{[%clk 00:04:55]} {[%emt 00:00:32]} Kd5 {[%clk 00:11:10]} {[%emt 00:01:53]} 35.
Rf4 {[%clk 00:04:59]} {[%emt 00:00:06]} Kc6 {[%clk 00:09:03]} {[%emt 00:02:17]}
36. Kg2 {[%clk 00:04:25]} {[%emt 00:00:44]} Rb5 {[%clk 00:08:51]} {[%emt
00:00:23]} 37. Re4 {[%clk 00:04:03]} {[%emt 00:00:31]} Kd7 {[%clk 00:06:57]}
{[%emt 00:02:06]} 38. Re1 {[%clk 00:03:49]} {[%emt 00:00:23]} Rf5 {[%clk
00:06:36]} {[%emt 00:00:30]} 39. Rb1 {[%clk 00:03:27]} {[%emt 00:00:32]} Rc4
{[%clk 00:06:22]} {[%emt 00:00:24]} 40. Rb7+ {[%clk 00:03:14]} {[%emt
00:00:23]} Rc7 {[%clk 00:06:17]} {[%emt 00:00:15]} 41. Rb6 {[%clk 00:02:59]}
{[%emt 00:00:25]} Ke7 {[%clk 00:06:08]} {[%emt 00:00:19]} 42. Ra6 {[%clk
00:02:27]} {[%emt 00:00:42]} Rd7 {[%clk 00:05:07]} {[%emt 00:01:12]} 43. Rc6
{[%clk 00:02:00]} {[%emt 00:00:36]} Rdd5 {[%clk 00:04:38]} {[%emt 00:00:40]} 44.
Rc7+ {[%clk 00:01:46]} {[%emt 00:00:25]} Ke8 {[%clk 00:04:24]} {[%emt
00:00:23]} 45. Ra7 {[%clk 00:01:38]} {[%emt 00:00:17]} g5 {[%clk 00:03:45]}
{[%emt 00:00:49]} 46. hxg5 {[%clk 00:00:44]} {[%emt 00:01:04]} fxg5 {[%clk
00:03:52]} {[%emt 00:00:03]} 47. Ra8+ {[%clk 00:00:26]} {[%emt 00:00:28]} Rd8
{[%clk 00:03:43]} {[%emt 00:00:19]} 48. Ra6 {[%clk 00:00:33]} {[%emt 00:00:03]}
Ke7 {[%clk 00:01:28]} {[%emt 00:02:26]} 49. Rh6 {[%clk 00:00:30]} {[%emt
00:00:12]} g4 {[%clk 00:01:31]} {[%emt 00:00:07]} 50. Ra6 {[%clk 00:00:28]}
{[%emt 00:00:12]} Rb8 {[%clk 00:01:26]} {[%emt 00:00:15]} 51. Rc6 {[%clk
00:00:15]} {[%emt 00:00:23]} Ra5 {[%clk 00:01:07]} {[%emt 00:00:31]} 52. Rc7+
{[%clk 00:00:14]} {[%emt 00:00:10]} Ke6 {[%clk 00:01:03]} {[%emt 00:00:14]} 53.
Kf1 {[%clk 00:00:16]} {[%emt 00:00:06]} Ra2 {[%clk 00:01:01]} {[%emt 00:00:13]}
54. Kg2 {[%clk 00:00:13]} {[%emt 00:00:14]} Rb1 {[%clk 00:00:43]} {[%emt
00:00:28]} 55. Ra7 {[%clk 00:00:14]} {[%emt 00:00:09]} Rc2 {[%clk 00:00:43]}
{[%emt 00:00:10]} 56. Ra6+ {[%clk 00:00:16]} {[%emt 00:00:07]} Kd5 {[%clk
00:00:26]} {[%emt 00:00:27]} 57. Ra5+ {[%clk 00:00:20]} {[%emt 00:00:06]} Kc4
{[%clk 00:00:27]} {[%emt 00:00:08]} 58. Rc5+ {[%clk 00:00:12]} {[%emt
00:00:19]} Kd3 {[%clk 00:00:35]} {[%emt 00:00:02]} 59. Be3 {[%clk 00:00:20]}
Rxc3 {[%clk 00:00:12]} {[%emt 00:00:34]} 60. Rxh5 {[%clk 00:00:19]} {[%emt
00:00:11]} Rc4 {[%clk 00:00:20]} 61. Rh8 {[%clk 00:00:15]} {[%emt 00:00:14]}
Ra4 {[%clk 00:00:26]} {[%emt 00:00:05]} 62. Rh1 {[%clk 00:00:13]} {[%emt
00:00:12]} Rb7 {[%clk 00:00:31]} {[%emt 00:00:04]} 63. Rd1+ {[%clk 00:00:20]}
{[%emt 00:00:02]} Ke4 {[%clk 00:00:40]} {[%emt 00:00:02]} 64. Rd4+ {[%clk
00:00:29]} Rxd4 {[%clk 00:00:47]} {[%emt 00:00:04]} 0-1

[Event "NK ABC Kwalificatie 2"]
[Site "Zoetermeer, Netherlands"]
[Date "2025.01.04"]
[Round "1.4"]
[White "Ramdien, Ryan"]
[Black "Madularea, David"]
[Result "0-1"]
[TimeControl "55+10"]
[WhiteFideId "8722637"]
[BlackFideId "8700494"]
[WhiteElo "1835"]
[BlackElo "2232"]

1. d4 {[%clk 00:55:17]} {[%emt 00:00:02]} Nf6 {[%clk 00:55:08]} {[%emt
00:00:12]} 2. Nf3 {[%clk 00:55:18]} {[%emt 00:00:10]} b6 {[%clk 00:54:59]}
{[%emt 00:00:18]} 3. g3 {[%clk 00:55:02]} {[%emt 00:00:26]} Bb7 {[%clk
00:55:07]} {[%emt 00:00:02]} 4. Bg2 {[%clk 00:54:43]} {[%emt 00:00:29]} g6
{[%clk 00:55:09]} {[%emt 00:00:07]} 5. O-O {[%clk 00:54:43]} {[%emt 00:00:11]}
Bg7 {[%clk 00:55:15]} {[%emt 00:00:04]} 6. c4 {[%clk 00:54:33]} {[%emt
00:00:20]} O-O {[%clk 00:55:20]} {[%emt 00:00:05]} 7. Nc3 {[%clk 00:54:36]}
{[%emt 00:00:07]} Ne4 {[%clk 00:55:25]} {[%emt 00:00:04]} 8. Bf4 {[%clk
00:53:02]} {[%emt 00:01:45]} d6 {[%clk 00:52:28]} {[%emt 00:03:06]} 9. Qc2
{[%clk 00:51:26]} {[%emt 00:01:47]} Nxc3 {[%clk 00:50:55]} {[%emt 00:01:43]} 10.
bxc3 {[%clk 00:49:57]} {[%emt 00:01:40]} Qe8 {[%clk 00:44:21]} {[%emt
00:06:43]} 11. e4 {[%clk 00:39:25]} {[%emt 00:10:42]} e5 {[%clk 00:43:59]}
{[%emt 00:00:32]} 12. Be3 {[%clk 00:38:04]} {[%emt 00:01:32]} exd4 {[%clk
00:43:39]} {[%emt 00:00:30]} 13. Nxd4 {[%clk 00:37:57]} {[%emt 00:00:16]} Nc6
{[%clk 00:41:21]} {[%emt 00:02:28]} 14. Nb5 {[%clk 00:35:09]} {[%emt 00:02:59]}
Qd7 {[%clk 00:40:15]} {[%emt 00:01:14]} 15. Rfd1 {[%clk 00:33:05]} {[%emt
00:02:15]} a6 {[%clk 00:39:55]} {[%emt 00:00:30]} 16. Na3 {[%clk 00:33:01]}
{[%emt 00:00:15]} Qe6 {[%clk 00:37:11]} {[%emt 00:02:54]} 17. Rab1 {[%clk
00:31:31]} {[%emt 00:01:40]} Rfe8 {[%clk 00:35:59]} {[%emt 00:01:20]} 18. c5
{[%clk 00:30:03]} {[%emt 00:01:40]} dxc5 {[%clk 00:35:14]} {[%emt 00:00:54]} 19.
Bxc5 {[%clk 00:29:15]} {[%emt 00:00:59]} Nd8 {[%clk 00:28:47]} {[%emt
00:06:36]} 20. Bd4 {[%clk 00:27:19]} {[%emt 00:02:07]} Bxe4 {[%clk 00:28:24]}
{[%emt 00:00:33]} 21. Bxe4 {[%clk 00:26:50]} {[%emt 00:00:39]} Qxe4 {[%clk
00:26:54]} {[%emt 00:01:39]} 22. Qxe4 {[%clk 00:26:45]} {[%emt 00:00:15]} Re7
{[%emt 00:00:23]} 23. Bxg7 {[%clk 00:25:24]} Rxe4 {[%clk 00:26:45]} 24. Rd6
Kxg7 25. Rd7 {[%clk 00:24:55]} Ne6 {[%clk 00:26:03]} {[%emt 00:00:50]} 26. Rb4
{[%clk 00:22:41]} {[%emt 00:02:26]} Re2 {[%clk 00:24:04]} {[%emt 00:02:08]} 27.
Nc4 {[%clk 00:21:45]} {[%emt 00:01:07]} b5 {[%clk 00:20:47]} {[%emt 00:03:26]}
28. Ne3 {[%clk 00:21:07]} {[%emt 00:00:48]} Rxa2 {[%clk 00:20:22]} {[%emt
00:00:36]} 29. c4 {[%clk 00:19:26]} {[%emt 00:01:52]} c5 {[%clk 00:19:20]}
{[%emt 00:01:11]} 30. Rb1 {[%clk 00:19:03]} {[%emt 00:00:34]} b4 {[%clk
00:18:44]} {[%emt 00:00:46]} 31. Ng4 {[%clk 00:18:13]} {[%emt 00:01:01]} Rd8
{[%clk 00:16:20]} {[%emt 00:02:33]} 32. Ra7 {[%clk 00:17:05]} {[%emt 00:01:19]}
Rdd2 {[%clk 00:15:25]} {[%emt 00:01:03]} 33. Rf1 {[%clk 00:16:52]} {[%emt
00:00:23]} Re2 {[%clk 00:14:51]} {[%emt 00:00:43]} 34. f4 {[%clk 00:14:56]}
{[%emt 00:02:07]} h5 {[%clk 00:14:07]} {[%emt 00:00:54]} 35. Nf2 {[%clk
00:14:46]} {[%emt 00:00:21]} Nd4 {[%clk 00:13:11]} {[%emt 00:01:05]} 36. Kg2
{[%clk 00:14:43]} {[%emt 00:00:13]} Nc2 {[%clk 00:12:33]} {[%emt 00:00:48]} 37.
Kf3 {[%clk 00:13:20]} {[%emt 00:01:34]} Ne1+ {[%clk 00:12:08]} {[%emt
00:00:34]} 38. Rxe1 {[%clk 00:13:21]} {[%emt 00:00:09]} Rxe1 {[%clk 00:12:12]}
{[%emt 00:00:06]} 39. Nd3 {[%clk 00:13:22]} {[%emt 00:00:10]} Ra3 {[%clk
00:11:50]} {[%emt 00:00:32]} 40. Kf2 {[%clk 00:13:21]} {[%emt 00:00:11]} Rb1
{[%clk 00:11:15]} {[%emt 00:00:44]} 41. Ke2 {[%clk 00:13:03]} {[%emt 00:00:29]}
Rbb3 {[%clk 00:11:08]} {[%emt 00:00:16]} 0-1